bitfinex-derivatives/quotes_ETHF0:USTF0_20250528
["timestamp","ask_amount","ask_price","bid_price","bid_amount"]
[1748438064755,0.74886,2669.4,2669.3,4.4979]
[1748438064962,0.74886,2669.4,2669.3,3.2078]
[1748438065155,0.74892,2669.2,2669.0,3.2078]
[1748438065460,0.74895,2669.1,2669.0,3.2078]
[1748438066062,0.749,2668.9,2668.8,1.93931472]
[1748438066863,0.749,2668.9,2668.8,0.00561472]
[1748438067067,1.4129,2668.9,2668.8,0.00561472]
[1748438067365,2.7383,2668.9,2668.8,0.00561472]
[1748438068362,2.7383,2668.9,2668.1,2.54935]
[1748438068363,10.1971,2668.9,2668.0,1.37388225]
[1748438068561,1.8729,2668.4,2667.6,3.2078]
[1748438068869,0.74931,2667.8,2667.7,2.02173]
[1748438069059,0.7493,2667.9,2667.7,2.02174]
[1748438069256,0.7493,2667.9,2667.8,1.2245]
[1748438070566,11.44286,2668.3,2667.8,1.97381]
[1748438070860,0.74927,2668.0,2667.8,1.97381]
[1748438071269,0.74927,2668.0,2667.8,1.2245]
[1748438071466,0.74927,2668.0,2667.9,0.74928]
[1748438072264,0.74931,2667.8,2667.7,3.95713]
[1748438072461,0.74931,2667.8,2667.7,5.20293]
[1748438073163,0.7493,2667.9,2667.8,0.74929]
[1748438073364,0.74928,2667.9,2667.8,1.99511]
[1748438074366,0.74928,2667.9,2667.8,1.2458]
[1748438075063,0.74928,2667.9,2667.8,1.99511]
[1748438075462,0.74928,2667.9,2667.8,1.2458]
[1748438075663,0.74928,2667.9,2667.8,1.99511]
[1748438076064,1.87259,2668.8,2668.0,1.87313]
[1748438076267,0.74913,2668.5,2668.4,0.74912]
[1748438076958,0.74913,2668.5,2668.4,0.669]
[1748438077368,0.74913,2668.5,2668.4,2.75434]
[1748438077569,0.7491,2668.6,2668.5,0.74909]
[1748438077868,0.74907,2668.7,2668.6,0.74907]
[1748438078261,0.74909,2668.6,2668.5,4.544]
[1748438078963,0.74909,2668.6,2668.5,5.29311]
[1748438079973,0.74908,2668.7,2668.6,0.74909]
[1748438080270,0.74905,2668.8,2668.5,4.544]
[1748438080569,0.74905,2668.8,2668.7,0.74905]
[1748438080765,1.39847,2669.1,2669.0,0.74897]
[1748438081069,0.74895,2669.1,2669.0,0.74895]
[1748438081870,3.95674,2669.2,2669.1,0.74895]
[1748438082473,0.74895,2669.1,2669.0,2.01816]
[1748438082972,0.00561472,2669.3,2669.2,0.74892]
[1748438083268,0.00561472,2669.3,2669.2,7.66972]
[1748438084170,0.74876,2669.8,2669.7,0.74875]
[1748438084770,0.74876,2669.8,2669.5,5.7302]
[1748438084771,0.7488,2669.7,2669.6,0.74879]
[1748438088476,0.7488,2669.7,2669.5,5.7302]
[1748438088477,0.7488,2669.6,2669.5,6.47902]
[1748438089873,1.87211,2669.5,2669.0,0.00561472]
[1748438090074,0.74895,2669.1,2669.0,0.00561472]
[1748438090476,0.74895,2669.1,2669.0,0.75458472]
[1748438091179,0.74895,2669.1,2669.0,2.11248472]
[1748438091576,0.74895,2669.1,2669.0,1.36351472]
[1748438092681,0.74895,2669.1,2669.0,2.11248472]
[1748438093977,0.74895,2669.1,2669.0,1.36351472]
[1748438094369,0.74895,2669.1,2669.0,2.11248472]
[1748438094976,0.74895,2669.1,2669.0,0.00561472]
[1748438095178,0.74895,2669.1,2669.0,0.75458472]
[1748438096573,2.71751,2669.3,2669.2,0.74892]
[1748438096780,0.74892,2669.2,2669.1,1.99113]
[1748438097878,0.74892,2669.2,2669.1,1.2422]
[1748438100181,0.74895,2669.1,2669.0,0.00561472]
[1748438100377,1.97695,2669.1,2669.0,0.00561472]
[1748438101775,1.97695,2669.1,2669.0,4.72e-06]
[1748438101971,5.68895,2669.1,2669.0,4.72e-06]
[1748438102174,1.97695,2669.1,2669.0,4.72e-06]
[1748438104177,1.97695,2669.1,2669.0,1.25060472]
[1748438104685,1.97695,2669.1,2669.0,1.99957472]
[1748438105074,0.74895,2669.1,2669.0,1.99955472]
[1748438105674,0.74895,2669.1,2669.0,1.25060472]
[1748438105982,0.74895,2669.1,2669.0,1.99957472]
[1748438106783,0.74895,2669.1,2669.0,1.25060472]
[1748438106982,0.74895,2669.1,2669.0,4.72e-06]
[1748438107287,2.10105,2669.1,2669.0,4.72e-06]
[1748438116988,3.95674,2669.2,2669.1,0.74895]
[1748438117179,3.95674,2669.2,2669.1,1.2327]
[1748438117582,0.74895,2669.1,2669.0,4.72e-06]
[1748438118091,2.01755,2669.1,2669.0,4.72e-06]
[1748438118283,0.74895,2669.1,2669.0,4.72e-06]
[1748438118688,0.74895,2669.1,2669.0,0.74897472]
[1748438119886,0.74895,2669.1,2669.0,3.37407472]
[1748438120593,0.74894,2669.2,2669.1,0.74894]
[1748438120888,0.74894,2669.2,2669.1,2.12282225]
[1748438122090,0.74894,2669.2,2669.1,1.37388225]
[1748438122289,0.74894,2669.2,2669.1,2.12283225]
[1748438123381,0.74894,2669.2,2669.1,1.37388225]
[1748438123590,0.74894,2669.2,2669.0,5.83290472]
[1748438123591,0.74895,2669.1,2669.0,2.62510472]
[1748438123798,0.74895,2669.1,2669.0,1.97810472]
[1748438123983,0.74895,2669.1,2669.0,4.72e-06]
[1748438131395,3.95675,2669.1,2669.0,4.72e-06]
[1748438132894,44.75675,2669.1,2669.0,4.72e-06]
[1748438133984,3.95675,2669.1,2669.0,4.72e-06]
[1748438134791,3.95675,2669.1,2669.0,1.27720472]
[1748438134991,5.58416,2669.4,2669.1,0.74893]
[1748438134992,0.74894,2669.2,2669.1,0.74893]
[1748438135191,0.74894,2669.2,2669.1,1.38763]
[1748438135695,0.74894,2669.2,2669.1,2.76151225]
[1748438135995,0.74895,2669.1,2669.0,1.37388697]
[1748438136299,0.74895,2669.1,2669.0,2.68048697]
[1748438137396,0.74895,2669.1,2669.0,3.42945697]
[1748438137996,0.74895,2669.1,2669.0,2.68048697]
[1748438138190,0.74895,2669.1,2669.0,1.30660472]
[1748438138902,0.74895,2669.1,2669.0,4.72e-06]
[1748438140297,3.95675,2669.1,2669.0,4.72e-06]
[1748438147107,9.84451571,2669.1,2669.0,4.72e-06]
[1748438147401,50.64451571,2669.1,2669.0,4.72e-06]
[1748438154201,50.64368672,2669.1,2669.0,4.72e-06]
[1748438158709,50.64405401,2669.1,2669.0,4.72e-06]
[1748438160112,51.96475401,2669.1,2669.0,4.72e-06]
[1748438161104,0.7492,2668.2,2668.1,2.5522]
[1748438161314,4.4612,2668.2,2668.1,2.5522]
[1748438161718,1.87318,2668.0,2667.5,1.3765719]
[1748438161918,0.74928,2667.9,2667.8,1.2963]
[1748438162327,2.68298,2667.9,2667.8,1.2963]
[1748438162928,43.48298,2667.9,2667.8,1.2963]
[1748438163115,0.74934,2667.7,2667.6,0.00561472]
[1748438163314,7.66914,2667.7,2667.6,0.00561472]
[1748438166319,3.95714,2667.7,2667.6,0.00561472]
[1748438166525,3.2078,2668.0,2667.7,0.74933]
[1748438166718,3.2078,2668.0,2667.6,5.00561472]
[1748438166719,0.74928,2667.9,2667.8,1.3259]
[1748438167120,0.00561472,2668.1,2667.8,9.5337]
[1748438167322,0.00561472,2668.1,2667.8,4.5337]
[1748438167627,0.00561472,2668.1,2668.0,0.74925]
[1748438168026,0.00561472,2668.1,2667.8,5.28299]
[1748438168336,0.74928,2667.9,2667.8,1.3259]
[1748438171626,0.74934,2667.7,2667.6,0.00561472]
[1748438171826,0.74945,2667.3,2667.2,3.2078]
[1748438172528,0.74954,2667.0,2666.9,3.2078]
[1748438173131,0.74954,2667.0,2666.9,8.2078]
[1748438173431,6.9198,2667.6,2666.9,8.2078]
[1748438173628,0.74945,2667.4,2667.3,3.2078]
[1748438174933,3.2078,2667.7,2667.3,3.2078]
[1748438175235,0.74941,2667.5,2667.3,3.2078]
[1748438175631,3.2078,2667.7,2667.3,8.2078]
[1748438175829,0.74942,2667.4,2667.3,3.2078]
[1748438176344,0.74942,2667.4,2667.3,8.2078]
[1748438176634,0.74945,2667.3,2667.2,0.6221]
[1748438177636,3.713,2667.6,2667.2,5.6221]
[1748438177930,0.74945,2667.3,2667.2,0.6221]
[1748438178135,0.74945,2667.3,2667.2,5.6221]
[1748438179447,0.74945,2667.3,2667.2,0.6221]
[1748438179832,0.74945,2667.3,2667.2,1.9179]
[1748438181944,0.74945,2667.3,2667.2,1.2958]
[1748438184734,3.95725,2667.3,2667.2,1.2958]
[1748438185345,5.24645,2667.3,2667.2,1.2958]
[1748438185753,0.74956,2666.9,2666.8,1.2994]
[1748438187145,0.74956,2666.9,2666.8,2.5295]
[1748438190042,0.74956,2666.9,2666.8,1.2301]
[1748438193938,0.74959,2666.8,2666.7,0.00561472]
[1748438194145,2.65149,2666.8,2666.7,0.00561472]
[1748438198957,1.41579,2666.8,2666.7,0.00561472]
[1748438201646,2.72319,2666.8,2666.7,0.00561472]
[1748438203054,0.74959,2666.8,2666.7,0.00561472]
[1748438203953,1.38469,2666.8,2666.7,0.00561472]
[1748438205254,5.10369,2666.8,2666.7,0.00561472]
[1748438205461,4.46859,2666.8,2666.7,0.00561472]
[1748438208456,0.74959,2666.8,2666.7,0.00561472]
[1748438208855,2.04939,2666.8,2666.7,0.00561472]
[1748438209956,0.74959,2666.8,2666.7,0.00561472]
[1748438210352,0.74959,2666.8,2666.7,0.66221472]
[1748438210560,0.74959,2666.8,2666.7,1.28851472]
[1748438215168,0.74959,2666.8,2666.7,1.38143889]
[1748438215361,0.74959,2666.8,2666.7,0.00561472]
[1748438215567,0.74959,2666.8,2666.7,1.38143889]
[1748438216369,2.05659,2666.8,2666.7,1.38143889]
[1748438216966,2.05659,2666.8,2666.7,0.00561472]
[1748438218869,0.74959,2666.8,2666.7,1.38143889]
[1748438219070,0.74959,2666.8,2666.7,0.00561472]
[1748438221372,0.74959,2666.8,2666.7,1.31031472]
[1748438222663,0.74959,2666.8,2666.7,2.68946507]
[1748438222868,1.38819,2666.8,2666.7,2.68946507]
[1748438223368,1.38819,2666.8,2666.7,1.31031472]
[1748438227280,1.38819,2666.8,2666.7,0.00561472]
[1748438227980,1.69035551,2666.8,2666.7,0.00561472]
[1748438228780,1.38819,2666.8,2666.7,0.00561472]
[1748438228976,1.38819,2666.8,2666.7,4.72e-06]
[1748438229378,6.38819,2666.8,2666.7,4.72e-06]
[1748438229681,6.67840836,2666.8,2666.7,4.72e-06]
[1748438229982,47.47840836,2666.8,2666.7,4.72e-06]
[1748438231770,48.36843795,2666.8,2666.7,4.72e-06]
[1748438232274,48.36846223,2666.8,2666.7,4.72e-06]
[1748438233282,1.8742,2666.5,2665.7,2.00015035]
[1748438233485,1.8745,2666.1,2665.5,4.58695035]
[1748438233683,0.7499,2665.7,2665.6,1.2693]
[1748438234487,0.74993,2665.6,2665.5,3.2078]
[1748438234694,1.42743,2665.6,2665.5,3.8523]
[1748438235192,0.74993,2665.6,2665.5,5.7721]
[1748438236892,0.74993,2665.6,2665.5,4.4771]
[1748438237585,0.74993,2665.6,2665.5,5.1564]
[1748438239387,0.74993,2665.6,2665.5,4.4771]
[1748438240090,0.74993,2665.6,2665.5,3.2078]
[1748438240291,0.74996,2665.5,2665.4,0.00381508]
[1748438240494,2.03546,2665.5,2665.4,0.00381508]
[1748438240899,2.03546,2665.5,2665.4,5.08e-06]
[1748438241894,0.7501,2665.0,2664.9,2.85610508]
[1748438242195,0.7501,2665.0,2664.9,1.2312]
[1748438243395,2.734,2665.0,2664.9,1.2312]
[1748438243791,5.9418,2665.0,2664.9,1.2312]
[1748438245991,2.734,2665.0,2664.9,1.2312]
[1748438247091,0.75021,2664.6,2664.5,3.95801]
[1748438247296,0.75016,2664.8,2664.7,0.75018]
[1748438248495,0.75018,2664.7,2664.6,2.68219]
[1748438248696,0.75018,2664.7,2664.6,1.42189]
[1748438249394,0.744863,2664.7,2664.6,1.42189]
[1748438250998,0.75012,2665.0,2664.9,0.7501]
[1748438251199,0.75018,2664.8,2664.7,0.75018]
[1748438251701,0.75018,2664.7,2664.6,0.6717]
[1748438252606,0.75018,2664.7,2664.6,1.42191]
[1748438253402,0.75018,2664.7,2664.6,0.6717]
[1748438254702,0.75018,2664.7,2664.6,1.42191]
[1748438256110,1.87495,2665.5,2665.1,0.75007]
[1748438256405,0.75004,2665.2,2665.1,0.75004]
[1748438256905,0.75007,2665.1,2665.0,1.38105]
[1748438257302,0.75007,2665.1,2665.0,0.631]
[1748438258709,0.75007,2665.1,2665.0,1.3811]
[1748438259713,4.07013,2665.3,2665.2,0.75004]
[1748438259911,0.1123,2665.3,2665.2,0.75004]
[1748438260411,0.1123,2665.3,2665.2,2.01694]
[1748438262313,0.86231,2665.3,2665.2,2.01694]
[1748438262509,0.1123,2665.3,2665.2,2.01694]
[1748438262711,0.1123,2665.3,2665.2,3.39609035]
[1748438263511,0.1123,2665.3,2665.2,2.01694]
[1748438264417,0.86231,2665.3,2665.2,2.01694]
[1748438264915,0.1123,2665.3,2665.2,2.01694]
[1748438268818,0.86231,2665.3,2665.2,2.01694]
[1748438269018,0.86231,2665.3,2665.2,19.26594]
[1748438271023,0.86231,2665.3,2665.2,19.92624]
[1748438271622,0.75001,2665.4,2665.3,0.74999]
[1748438271821,0.75001,2665.4,2665.3,2.12624654]
[1748438272923,2.65231,2665.4,2665.3,1.37625654]
[1748438273221,0.75004,2665.2,2665.1,5.33411654]
[1748438277111,0.75004,2665.2,2665.1,5.33412654]
[1748438277825,0.75004,2665.2,2665.1,4.58405654]
[1748438278423,0.75004,2665.2,2665.1,3.95787]
[1748438279121,0.75004,2665.2,2665.1,3.2078]
[1748438279620,0.75007,2665.1,2665.0,1.37625654]
[1748438279825,0.7501,2665.0,2664.9,1.37625654]
[1748438280324,2.1078,2665.0,2664.9,1.37625654]
[1748438280725,0.75013,2664.9,2664.8,2.12640654]
[1748438281027,2.78353,2664.9,2664.8,2.12640654]
[1748438281221,0.75015,2664.8,2664.7,2.12642654]
[1748438281424,1.42584,2664.9,2664.8,0.75015]
[1748438281622,0.6757,2664.9,2664.8,2.12640654]
[1748438282121,1.42583,2664.9,2664.8,2.12640654]
[1748438282329,1.42583,2664.9,2664.8,4.58405654]
[1748438282823,1.42583,2664.9,2664.8,2.12640654]
[1748438283224,1.42583,2664.9,2664.8,1.37625654]
[1748438285431,0.75015,2664.8,2664.7,1.37625654]
[1748438285730,0.75018,2664.7,2664.6,1.37625654]
[1748438285928,1.40668,2664.7,2664.6,1.37625654]
[1748438286929,1.40668,2664.7,2664.4,1.37625654]
[1748438286930,0.75024,2664.5,2664.4,1.37625654]
[1748438288132,0.75024,2664.5,2664.4,2.12652654]
[1748438288629,0.75024,2664.5,2664.4,0.75027]
[1748438289932,0.75024,2664.5,2664.4,1.3528]
[1748438291720,0.75029,2664.3,2664.2,4.58405654]
[1748438291922,0.75029,2664.3,2664.1,0.75033]
[1748438291923,0.75032,2664.2,2664.1,1.37625654]
[1748438292127,0.75035,2664.1,2664.0,1.98837]
[1748438292526,2.10895,2664.1,2664.0,1.98837]
[1748438294032,1.39533,2664.2,2664.1,0.75035]
[1748438294226,0.6474,2664.4,2664.3,0.75029]
[1748438294434,0.00562556,2664.5,2664.4,0.75027]
[1748438295228,0.00562556,2664.5,2664.4,2.06157]
[1748438297529,0.75586556,2664.5,2664.4,2.06157]
[1748438298235,0.75027,2664.4,2664.3,1.37625654]
[1748438298440,0.75029,2664.3,2664.2,0.75031]
[1748438298633,0.75029,2664.3,2664.2,1.99441]
[1748438299530,2.72198,2664.4,2664.3,0.75029]
[1748438299724,0.00562556,2664.5,2664.4,0.75027]
[1748438299932,0.75029,2664.4,2664.3,0.75027]
[1748438300137,0.75029,2664.4,2664.3,1.99437]
[1748438300532,0.75029,2664.4,2664.3,1.2441]
[1748438300732,0.75029,2664.4,2664.3,1.99439]
[1748438301936,2.03129,2664.4,2664.3,1.99439]
[1748438302641,4.4888,2664.4,2664.1,1.37625654]
[1748438302843,0.75035,2664.2,2664.1,0.75033]
[1748438303245,1.36565,2664.2,2664.1,0.75033]
[1748438303935,0.75031,2664.3,2664.2,0.75032]
[1748438304330,0.65482556,2664.5,2664.4,0.75027]
[1748438304537,1.40506556,2664.5,2664.4,0.75027]
[1748438304940,1.40506556,2664.5,2664.4,1.98147]
[1748438306041,0.00562556,2664.5,2664.4,1.98147]
[1748438307533,0.00562556,2664.5,2664.4,3.35772654]
[1748438307936,0.00562556,2664.5,2664.4,1.98147]
[1748438308841,0.1124,2664.6,2664.5,0.75024]
[1748438309047,0.1124,2664.6,2664.5,5.68864]
[1748438309744,0.1124,2664.6,2664.5,10.68864]
[1748438310941,0.1124,2664.6,2664.5,27.93664]
[1748438312137,3.2078,2665.6,2664.6,1.87553]
[1748438312346,3.2078,2665.6,2665.3,0.74999]
[1748438312347,0.75002,2665.4,2665.3,0.74999]
[1748438312933,2.09442,2665.4,2665.3,0.74999]
[1748438313947,1.3444,2665.4,2665.3,0.74999]
[1748438314347,1.38498,2665.5,2665.4,0.74998]
[1748438314845,0.635,2665.5,2665.4,0.74998]
[1748438315241,1.38496,2665.5,2665.4,0.74998]
[1748438315844,2.72486,2665.5,2665.4,0.74998]
[1748438317846,0.74998,2665.4,2665.3,1.2876]
[1748438318149,0.75007,2665.1,2665.0,1.37668016]
[1748438318344,5.08294,2665.2,2664.8,3.47292016]
[1748438318553,0.75013,2664.9,2664.8,3.47292016]
[1748438318751,0.75013,2664.9,2664.8,2.09624]
[1748438320551,2.05323,2664.9,2664.8,2.09624]
[1748438322252,2.05323,2664.9,2664.8,0.75014]
[1748438324447,0.75018,2664.7,2664.6,1.37668016]
[1748438324650,0.75024,2664.5,2664.4,1.37668016]
[1748438324852,0.75024,2664.5,2664.4,0.75027]
[1748438325245,1.99654,2664.5,2664.4,0.75027]
[1748438325443,0.75027,2664.4,2664.3,2.01860556]
[1748438325659,1.99657,2664.4,2664.3,3.39528572]
[1748438325841,1.99657,2664.4,2664.3,2.01860556]
[1748438329360,1.99657,2664.4,2664.3,2.01861556]
[1748438329658,1.99657,2664.4,2664.3,1.26832556]
[1748438329857,1.99657,2664.4,2664.3,2.01861556]
[1748438330359,1.99657,2664.4,2664.3,0.00562556]
[1748438340966,0.75027,2664.4,2664.3,0.75592556]
[1748438341765,1.2954,2664.5,2664.3,0.75592556]
[1748438341766,1.2954,2664.5,2664.4,0.75027]
[1748438341957,0.75024,2664.5,2664.4,2.08877]
[1748438342160,0.75024,2664.5,2664.4,2.76017]
[1748438348471,0.75024,2664.5,2664.4,1.3385]
[1748438349077,0.75024,2664.5,2664.4,2.08877]
[1748438352472,0.75024,2664.5,2664.4,1.3385]
[1748438354181,0.75024,2664.5,2664.4,2.08877]
[1748438355379,0.75024,2664.5,2664.4,3.46545016]
[1748438357777,0.75024,2664.5,2664.4,2.08877]
[1748438358077,0.75024,2664.5,2664.4,2.73327]
[1748438361979,0.75023,2664.6,2664.5,0.7502]
[1748438362180,0.75023,2664.6,2664.5,3.40276098]
[1748438362878,0.7502,2664.7,2664.6,0.75018]
[1748438363079,0.7502,2664.7,2664.6,3.40274098]
[1748438370486,0.7502,2664.7,2664.6,2.02358]
[1748438376694,0.7502,2664.7,2664.6,1.2734]
[1748438376887,0.75021,2664.6,2664.5,0.75022]
[1748438377187,2.09561,2664.6,2664.5,0.75022]
[1748438380094,0.7502,2664.7,2664.6,0.75021]
[1748438380390,0.7502,2664.7,2664.6,2.13011985]
[1748438381192,0.7502,2664.7,2664.6,0.75021]
[1748438385096,2.0615,2664.7,2664.6,0.75021]
[1748438390999,1.3113,2664.7,2664.4,1.72110053]
[1748438391197,0.75024,2664.5,2664.4,2.47134053]
[1748438391601,0.75024,2664.5,2664.4,0.75024]
[1748438392099,0.75024,2664.5,2664.4,2.05194]
[1748438393501,2.10683,2664.6,2664.5,0.75024]
[1748438393804,2.10683,2664.6,2664.5,2.05194]
[1748438395708,2.10683,2664.6,2664.5,1.3017]
[1748438396105,2.10683,2664.6,2664.5,2.05194]
[1748438398310,0.75023,2664.6,2664.5,2.05194]
[1748438400205,0.75023,2664.6,2664.5,1.3017]
[1748438400410,0.75023,2664.6,2664.5,2.68228989]
[1748438400605,3.95803,2664.6,2664.5,1.38058989]
[1748438401207,0.75024,2664.5,2664.4,1.38058989]
[1748438401509,0.75027,2664.4,2664.3,1.38621545]
[1748438401702,2.02447,2664.4,2664.3,1.38621545]
[1748438402212,2.02447,2664.4,2664.3,0.00562556]
[1748438402413,3.35347,2664.4,2664.3,0.00562556]
[1748438406015,7.65604,2664.6,2664.3,1.38621545]
[1748438406213,7.65604,2664.6,2664.5,0.75024]
[1748438406813,7.65604,2664.6,2664.5,1.98904]
[1748438407615,3.95804,2664.6,2664.5,1.98904]
[1748438407815,0.75021,2664.6,2664.5,1.2388]
[1748438408014,0.75024,2664.5,2664.4,1.38058989]
[1748438408214,0.75027,2664.4,2664.3,2.62501545]
[1748438408415,1.41467,2664.4,2664.3,2.62501545]
[1748438409017,2.06197,2664.4,2664.3,2.62501545]
[1748438409218,5.75997,2664.4,2664.3,0.00562556]
[1748438409419,5.75997,2664.4,2663.6,3.2078]
[1748438409420,1.87587,2664.2,2663.6,3.2078]
[1748438409720,10.0097,2664.4,2663.0,0.75066]
[1748438409721,0.75061,2663.2,2663.0,0.75066]
[1748438409919,0.75059,2663.3,2663.1,1.2426]
[1748438410223,3.95841,2663.2,2663.1,1.2426]
[1748438410812,3.2078,2663.2,2663.1,1.99323]
[1748438411023,2.0826,2663.3,2663.1,1.2426]
[1748438411320,2.0826,2663.3,2663.2,1.2426]
[1748438412221,0.75065,2663.1,2662.9,0.75629556]
[1748438412424,0.75062,2663.2,2662.9,1.99889556]
[1748438412625,0.75063,2663.1,2662.9,1.99889556]
[1748438413225,0.75066,2663.0,2662.9,1.24822556]
[1748438413425,0.6777,2663.0,2662.9,1.24822556]
[1748438413822,0.75066,2663.1,2662.9,1.99891556]
[1748438414124,1.42832,2663.2,2663.0,0.75066]
[1748438414319,1.42832,2663.2,2663.1,1.2272]
[1748438414515,0.00562556,2663.4,2663.3,0.75058]
[1748438415112,0.75617556,2663.4,2663.3,0.75058]
[1748438415317,0.00562556,2663.4,2663.3,2.61508]
[1748438415522,0.00562556,2663.4,2663.3,7.61508]
[1748438416121,0.00562556,2663.4,2663.3,2.61508]
[1748438421222,0.00562556,2663.4,2663.1,3.2078]
[1748438421425,0.00562556,2663.4,2663.3,0.75058]
[1748438429835,0.00562556,2663.4,2663.1,1.37359209]
[1748438430044,0.75061,2663.3,2663.2,0.75059]
[1748438431042,0.75063,2663.1,2663.0,2.01845]
[1748438431335,0.75063,2663.1,2663.0,2.01846]
[1748438431729,2.69313,2663.1,2663.0,1.2678]
[1748438432038,2.69313,2663.1,2662.9,0.00562556]
[1748438432039,0.75066,2663.0,2662.9,0.00562556]
[1748438432243,2.07976,2663.0,2662.9,0.00562556]
[1748438432840,2.07976,2663.0,2662.9,0.75631556]
[1748438433146,2.07976,2663.0,2662.9,0.00562556]
[1748438435635,1.87679,2662.9,2662.3,4.58139209]
[1748438435835,4.4796,2662.8,2662.3,4.5654]
[1748438436146,0.75079,2662.6,2662.5,0.75079]
[1748438437243,0.75082,2662.5,2662.4,0.75081]
[1748438437444,0.7508,2662.6,2662.5,0.75078]
[1748438437637,0.7508,2662.6,2662.4,1.2576]
[1748438437638,0.7508,2662.5,2662.4,1.2576]
[1748438437842,0.75079,2662.6,2662.5,0.75078]
[1748438438139,0.7508,2662.5,2662.4,2.0084]
[1748438438538,0.7508,2662.6,2662.5,0.75078]
[1748438438841,0.7508,2662.5,2662.4,2.00841]
[1748438439047,1.4134,2662.5,2662.4,2.00841]
[1748438439436,0.6626,2662.5,2662.4,2.00841]
[1748438440149,1.4134,2662.5,2662.4,2.00841]
[1748438440644,0.6626,2662.5,2662.4,2.00841]
[1748438442446,3.2078,2662.8,2662.7,0.75075]
[1748438442642,5.2005,2662.8,2662.7,0.75075]
[1748438443148,5.95124,2662.8,2662.7,0.75075]
[1748438443343,1.9927,2662.8,2662.7,0.75075]
[1748438443650,0.6649,2662.8,2662.7,0.75075]
[1748438444241,1.41562,2662.8,2662.7,0.75075]
[1748438445439,0.6649,2662.8,2662.7,0.75075]
[1748438445843,1.41562,2662.8,2662.7,0.75075]
[1748438446442,2.75742,2662.8,2662.7,0.75075]
[1748438449752,2.0067,2662.8,2662.7,0.75075]
[1748438450649,2.75742,2662.8,2662.7,0.75075]
[1748438451955,0.6649,2662.8,2662.7,0.75075]
[1748438452155,0.642,2662.9,2662.8,0.75072]
[1748438453060,1.39269,2662.9,2662.8,0.75072]
[1748438453355,0.75072,2662.8,2662.7,2.10502]
[1748438457753,2.65591,2662.9,2662.8,0.75072]
[1748438458157,0.75072,2662.8,2662.7,2.10502]
[1748438459058,1.2554,2662.8,2662.7,2.10502]
[1748438460067,1.39271,2662.9,2662.8,0.75072]
[1748438460255,1.39271,2662.9,2662.8,2.09992]
[1748438460758,2.64811,2662.9,2662.8,2.09992]
[1748438465866,0.75072,2662.8,2662.7,1.37359209]
[1748438466063,0.75072,2662.8,2662.4,1.3105]
[1748438466064,0.75075,2662.7,2662.6,1.37359209]
[1748438466363,0.75077,2662.6,2662.5,2.12439209]
[1748438466664,0.75077,2662.6,2662.5,3.36479209]
[1748438466665,0.6722,2662.6,2662.5,3.36479209]
[1748438466865,0.75075,2662.7,2662.6,0.75077]
[1748438467067,0.75075,2662.7,2662.6,1.99117]
[1748438467565,0.75075,2662.7,2662.6,3.36476209]
[1748438467966,0.75075,2662.7,2662.6,1.99117]
[1748438468168,2.10965,2662.7,2662.6,1.99117]
[1748438468566,2.10965,2662.7,2662.6,3.36476209]
[1748438468860,0.642,2662.9,2662.6,2.61399209]
[1748438469066,1.39269,2662.9,2662.8,0.75072]
[1748438469267,0.75072,2662.8,2662.7,3.45732209]
[1748438469464,0.75072,2662.8,2662.7,3.45734209]
[1748438470262,0.75072,2662.8,2662.7,2.70659209]
[1748438470565,2.10962,2662.8,2662.7,2.70659209]
[1748438470766,2.10962,2662.8,2662.7,3.45734209]
[1748438470963,3.21342556,2663.4,2663.0,0.75066]
[1748438471163,1.28712556,2663.4,2663.3,0.75058]
[1748438471363,0.00562556,2663.4,2663.3,0.75058]
[1748438471669,0.75617556,2663.4,2663.3,2.08948]
[1748438472166,0.75058,2663.3,2663.2,1.38134902]
[1748438472372,0.75618556,2663.4,2663.3,0.75058]
[1748438473565,0.00562556,2663.4,2663.3,0.75058]
[1748438474366,0.00562556,2663.4,2663.3,2.01008]
[1748438479470,0.00562556,2663.4,2663.3,3.38705549]
[1748438480869,3.2078,2664.0,2663.6,1.87621]
[1748438481174,3.2078,2664.0,2663.9,0.75041]
[1748438482078,0.6341,2664.1,2664.0,0.75038]
[1748438482271,0.75596556,2664.2,2664.1,0.75035]
[1748438482466,0.00562556,2664.2,2664.1,0.75035]
[1748438483085,0.00562556,2664.2,2664.1,1.42265]
[1748438485673,0.75594556,2664.2,2664.1,0.75035]
[1748438486276,0.00562556,2664.2,2664.1,0.75035]
[1748438486580,1.91772556,2664.2,2664.1,0.75035]
[1748438486781,2.55232556,2664.2,2664.1,0.75035]
[1748438490785,2.55232556,2664.2,2664.1,2.03705]
[1748438491881,1.29132556,2664.2,2664.1,2.03705]
[1748438492089,0.00562556,2664.2,2664.1,2.03705]
[1748438497883,0.75594556,2664.2,2664.1,0.75035]
[1748438498084,0.75594556,2664.2,2663.9,22.30379]
[1748438498085,0.75038,2664.1,2664.0,0.75037]
[1748438498290,2.66618,2664.1,2664.0,0.75037]
[1748438501086,0.75041,2664.0,2663.8,1.37640179]
[1748438501292,1.9653,2664.0,2663.7,0.00562556]
[1748438501591,0.75044,2663.8,2663.7,0.00562556]
[1748438501984,0.75044,2663.8,2663.7,0.75608556]
[1748438502197,0.75044,2663.8,2663.7,0.00562556]
[1748438502396,2.08214,2663.8,2663.7,0.75608556]
[1748438502890,2.08214,2663.8,2663.7,0.00562556]
[1748438503387,2.08214,2663.8,2663.7,0.75608556]
[1748438503591,1.3317,2663.8,2663.7,0.75608556]
[1748438503784,3.8414,2664.0,2663.9,0.75041]
[1748438503982,1.9653,2664.0,2663.9,0.75041]
[1748438504285,0.6336,2664.0,2663.9,0.75041]
[1748438504493,1.9352,2664.0,2663.9,0.75041]
[1748438504795,2.68558,2664.0,2663.9,0.75041]
[1748438505793,1.9352,2664.0,2663.9,0.75041]
[1748438506292,2.68558,2664.0,2663.9,0.75041]